fUST/lending_fUST_20240815
["ID","MTS","AMOUNT","RATE_DAILY","PERIOD"]
[334940871,1723663840515,-500.0,0.00013246,2]
[334940872,1723663840529,-445.53,0.00013246,2]
[334940873,1723663840538,-716.08,0.00013424,2]
[334940874,1723663840547,-716.08,0.00013424,2]
[334940875,1723663840556,-500.90807304,0.00013587,2]
[334940876,1723663840567,-480.84652906,0.00013588,2]
[334940877,1723663840577,-7130.27303309,0.00013588,2]
[334940878,1723663840585,-2000.0,0.00013588,2]
[334940879,1723663840594,-480.84652906,0.00013591,2]
[334940880,1723663840606,-480.84652906,0.00013593,2]
[334940881,1723663840618,-480.84652906,0.00013596,2]
[334940882,1723663840628,-150.28145351,0.00013596,2]
[334940883,1723663840637,-480.84652906,0.00013598,2]
[334940884,1723663840647,-1008.4988358,0.00013598,2]
[334940885,1723663840659,-10736.1465879,0.00013626,2]
[334940886,1723663840669,-8043.01552574,0.00013674,2]
[334940887,1723663840679,-5324.10913299,0.00013675,2]
[334940888,1723663840689,-10736.1465879,0.00013676,2]
[334940889,1723663840698,-10736.1465879,0.00013678,2]
[334940890,1723663840708,-32208.4397638,0.00013678,2]
[334940891,1723663840717,-10736.1465879,0.00013679,2]
[334940892,1723663840726,-182.2907837,0.00013685,2]
[334940893,1723663840735,-26528.40843555,0.00013686,2]
[334940894,1723663840748,-5485.68150616,0.00013686,2]
[334940895,1723663840760,-520.17456935,0.00013687,2]
[334940896,1723663840769,-716.08,0.00013687,2]
[334940897,1723663840778,-716.08,0.00013687,2]
[334940898,1723663840787,-810.44375008,0.00013688,2]
[334940899,1723663840796,-156.98248185,0.00013688,2]
[334940900,1723663840805,-1718.24595041,0.00013688,2]
[334940901,1723663840815,-49459.30136156,0.00013688,2]
[334940902,1723663840825,-56394.35579031,0.00013688,2]
[334940903,1723663840834,-107361.465879,0.00013688,2]
[334940904,1723663840843,-21472.2931759,0.00013689,2]
[334940905,1723663840852,-716.08,0.00013697,2]
[334940906,1723663840861,-716.08,0.00013697,2]
[334940907,1723663840871,-716.08,0.00013697,2]
[334940908,1723663840881,-716.08,0.00013697,2]
[334940909,1723663840891,-716.08,0.00013697,2]
[334940910,1723663840900,-716.08,0.00013697,2]
[334940911,1723663840909,-716.08,0.00013697,2]
[334940912,1723663840918,-716.08,0.00013697,2]
[334940913,1723663840927,-716.08,0.00013697,2]
[334940914,1723663840939,-716.08,0.00013697,2]
[334940915,1723663840948,-716.08,0.00013697,2]
[334940916,1723663840957,-716.08,0.00013697,2]
[334940917,1723663840966,-210.13067206,0.00013697,2]
[334940918,1723663840975,-499.72887715,0.00013698,2]
[334940919,1723663840997,-500.0,0.00013698,2]
[334940920,1723663841006,-500.0,0.00013698,2]
[334940921,1723663841016,-332.68619852,0.00013698,2]
[334940922,1723663841026,-502.51194388,0.00013698,2]
[334940923,1723663841035,-502.11294762,0.00013698,2]
[334940924,1723663841044,-500.0,0.00013698,2]
[334940925,1723663841054,-500.0,0.00013698,2]
[334940926,1723663841064,-500.0,0.00013698,2]
[334940927,1723663841073,-384.09136504,0.00013698,2]
[334940928,1723663841082,-500.0,0.00013698,2]
[334940929,1723663841091,-502.35284406,0.00013698,2]
[334940930,1723663841100,-500.0,0.00013698,2]
[334940931,1723663841109,-500.0,0.00013698,2]
[334940932,1723663841120,-500.0,0.00013698,2]
[334940933,1723663841129,-500.00262722,0.00013698,2]
[334940934,1723663841138,-500.0,0.00013698,2]
[334940935,1723663841148,-500.0,0.00013698,2]
[334940936,1723663841157,-500.0,0.00013698,2]
[334940937,1723663841166,-500.0,0.00013698,2]
[334940938,1723663841175,-500.0,0.00013698,2]
[334940939,1723663841189,-431.32098412,0.00013698,2]
[334940940,1723663841198,-500.0,0.00013698,2]
[334940941,1723663841207,-548.87810918,0.00013698,2]
[334940942,1723663841217,-500.0,0.00013698,2]
[334940943,1723663841226,-500.0,0.00013698,2]
[334940944,1723663841236,-500.0,0.00013698,2]
[334940945,1723663841246,-500.0,0.00013698,2]
[334940946,1723663841255,-532.98101813,0.00013698,2]
[334940947,1723663841264,-500.0,0.00013698,2]
[334940948,1723663841274,-185.56325986,0.00013698,2]
[334940949,1723663841283,-500.0,0.00013698,2]
[334940950,1723663841293,-500.0,0.00013698,2]
[334940951,1723663841302,-500.0,0.00013698,2]
[334940952,1723663841311,-503.03581998,0.00013698,2]
[334940953,1723663841321,-500.0,0.00013698,2]
[334940954,1723663841330,-500.0,0.00013698,2]
[334940955,1723663841339,-500.0,0.00013698,2]
[334940956,1723663841348,-639.4,0.00013698,2]
[334940957,1723663841360,-500.0,0.00013698,2]
[334940958,1723663841371,-500.0,0.00013698,2]
[334940959,1723663841380,-504.45002124,0.00013698,2]
[334940960,1723663841389,-500.0,0.00013698,2]
[334940961,1723663841399,-448.49771318,0.00013698,2]
[334940962,1723663841407,-191.10359996,0.00013698,2]
[334940963,1723663841418,-500.0,0.00013698,2]
[334940964,1723663841427,-500.0,0.00013698,2]
[334940965,1723663841436,-500.0,0.00013698,2]
[334940966,1723663841446,-500.0,0.00013698,2]
[334940967,1723663841455,-500.0,0.00013698,2]
[334940968,1723663841466,-500.0,0.00013698,2]
[334940969,1723663841476,-500.0,0.00013698,2]
[334940970,1723663841485,-500.0,0.00013698,2]
[334940971,1723663841494,-500.0,0.00013698,2]
[334940972,1723663841504,-500.0,0.00013698,2]
[334940973,1723663841514,-500.0,0.00013698,2]
[334940974,1723663841528,-500.0,0.00013698,2]
[334940975,1723663841538,-500.0,0.00013698,2]
[334940976,1723663841547,-500.0,0.00013698,2]
[334940977,1723663841557,-500.0,0.00013698,2]
[334940978,1723663841567,-500.0,0.00013698,2]
[334940979,1723663841733,-589.29,0.00013698,2]
[334940980,1723663841743,-500.0,0.00013698,2]
[334940981,1723663841755,-500.0,0.00013698,2]
[334940982,1723663841766,-500.0,0.00013698,2]
[334940983,1723663841776,-559.5105335,0.00013698,2]
[334940984,1723663841786,-500.0,0.00013698,2]
[334940985,1723663841795,-500.0,0.00013698,2]
[334940986,1723663841804,-500.0,0.00013698,2]
[334940987,1723663841813,-500.0,0.00013698,2]
[334940988,1723663841823,-500.0,0.00013698,2]
[334940989,1723663841832,-569.32059,0.00013698,2]
[334940990,1723663841842,-569.32059,0.00013698,2]
[334940991,1723663841851,-500.0,0.00013698,2]
[334940992,1723663841860,-500.0,0.00013698,2]
[334940993,1723663841871,-500.0,0.00013698,2]
[334940994,1723663841880,-500.0,0.00013698,2]
[334940995,1723663841890,-500.0,0.00013698,2]
[334940996,1723663841900,-500.0,0.00013698,2]
[334940997,1723663841909,-500.0,0.00013698,2]
[334940998,1723663841918,-500.0,0.00013698,2]
[334940999,1723663841928,-500.0,0.00013698,2]
[334941000,1723663841939,-600.55,0.00013698,2]
[334941001,1723663841948,-500.0,0.00013698,2]
[334941002,1723663841960,-500.0,0.00013698,2]
[334941003,1723663841969,-646.24800923,0.00013698,2]
[334941004,1723663841978,-500.0,0.00013698,2]
[334941005,1723663841987,-500.0,0.00013698,2]
[334941006,1723663841997,-500.0,0.00013698,2]
[334941007,1723663842005,-500.0,0.00013698,2]
[334941008,1723663842014,-378.556772,0.00013698,2]
[334941009,1723663842023,-500.0,0.00013698,2]
[334941010,1723663842032,-378.556772,0.00013698,2]
[334941011,1723663842042,-500.0,0.00013698,2]
[334941012,1723663842051,-500.0,0.00013698,2]
[334941013,1723663842060,-500.0,0.00013698,2]
[334941014,1723663842069,-500.0,0.00013698,2]
[334941015,1723663842078,-500.0,0.00013698,2]
[334941016,1723663842088,-500.0,0.00013698,2]
[334941017,1723663842097,-500.0,0.00013698,2]
[334941018,1723663842107,-532.08,0.00013698,2]
[334941019,1723663842116,-500.98374195,0.00013698,2]
[334941020,1723663842126,-500.0,0.00013698,2]
[334941021,1723663842135,-500.0,0.00013698,2]
[334941022,1723663842144,-500.0,0.00013698,2]
[334941023,1723663842153,-661.63,0.00013698,2]
[334941024,1723663842162,-500.0,0.00013698,2]
[334941025,1723663842171,-500.0,0.00013698,2]
[334941026,1723663842181,-156.55004738,0.00013698,2]
[334941027,1723663842190,-568.7,0.00013698,2]
[334941028,1723663842199,-500.0,0.00013698,2]
[334941029,1723663842209,-500.0,0.00013698,2]
[334941030,1723663842221,-500.0,0.00013698,2]
[334941031,1723663842233,-500.0,0.00013698,2]
[334941032,1723663842244,-500.0,0.00013698,2]
[334941033,1723663842254,-500.0,0.00013698,2]
[334941034,1723663842265,-500.0,0.00013698,2]
[334941035,1723663842275,-500.0,0.00013698,2]
[334941036,1723663842285,-298.73734563,0.00013698,2]
[334941037,1723663842294,-500.0,0.00013698,2]
[334941038,1723663842304,-500.0,0.00013698,2]
[334941039,1723663842313,-508.5312844,0.00013698,2]
[334941040,1723663842322,-500.0,0.00013698,2]
[334941041,1723663842332,-500.0,0.00013698,2]
[334941042,1723663842342,-500.0,0.00013698,2]
[334941043,1723663842353,-227.18879438,0.00013698,2]
[334941044,1723663842364,-500.0,0.00013698,2]
[334941045,1723663842376,-500.0,0.00013698,2]
[334941046,1723663842385,-500.0,0.00013698,2]
[334941047,1723663842394,-500.0,0.00013698,2]
[334941048,1723663842403,-500.0,0.00013698,2]
[334941049,1723663842412,-500.0,0.00013698,2]
[334941050,1723663842422,-500.0,0.00013698,2]
[334941051,1723663842431,-500.0,0.00013698,2]
[334941052,1723663842441,-500.0,0.00013698,2]
[334941053,1723663842450,-555.15,0.00013698,2]
[334941054,1723663842459,-500.0,0.00013698,2]
[334941055,1723663842468,-500.0,0.00013698,2]
[334941056,1723663842478,-503.93,0.00013698,2]
[334941057,1723663842487,-525.20921789,0.00013698,2]
[334941058,1723663842496,-500.0,0.00013698,2]
[334941059,1723663842505,-262.31712598,0.00013698,2]
[334941060,1723663842515,-501.90607601,0.00013698,2]
[334941061,1723663842527,-500.0,0.00013698,2]
[334941062,1723663842536,-500.0,0.00013698,2]
[334941063,1723663842546,-500.0,0.00013698,2]
[334941064,1723663842555,-500.0,0.00013698,2]
[334941065,1723663842566,-373.64051077,0.00013698,2]
[334941066,1723663842575,-500.0,0.00013698,2]
[334941067,1723663842584,-500.0,0.00013698,2]
[334941068,1723663842595,-500.0,0.00013698,2]
[334941069,1723663842604,-555.8,0.00013698,2]
[334941070,1723663842615,-531.74,0.00013698,2]
[334941071,1723663842624,-500.0,0.00013698,2]
[334941072,1723663842634,-500.0,0.00013698,2]
[334941073,1723663842643,-500.0,0.00013698,2]
[334941074,1723663842652,-500.0,0.00013698,2]
[334941075,1723663842662,-500.0,0.00013698,2]
[334941076,1723663842672,-500.0,0.00013698,2]
[334941077,1723663842682,-500.0,0.00013698,2]
[334941078,1723663842693,-500.0,0.00013698,2]
[334941079,1723663842704,-500.0,0.00013698,2]
[334941080,1723663842715,-500.0,0.00013698,2]
[334941081,1723663842726,-500.0,0.00013698,2]
[334941082,1723663842736,-368.10409166,0.00013698,2]
[334941083,1723663842748,-500.0,0.00013698,2]
[334941084,1723663842759,-500.0,0.00013698,2]
[334941085,1723663842768,-500.0,0.00013698,2]
[334941086,1723663842778,-502.79646109,0.00013698,2]
[334941087,1723663842787,-500.0,0.00013698,2]
[334941088,1723663842797,-500.0,0.00013698,2]
[334941089,1723663842806,-500.0,0.00013698,2]
[334941090,1723663842816,-483.61824805,0.00013698,2]
[334941091,1723663842826,-500.0,0.00013698,2]
[334941092,1723663842835,-500.0,0.00013698,2]
[334941093,1723663842844,-500.0,0.00013698,2]
[334941094,1723663842854,-500.0,0.00013698,2]
[334941095,1723663842864,-500.0,0.00013698,2]
[334941096,1723663842874,-500.0,0.00013698,2]
[334941097,1723663842883,-500.0,0.00013698,2]
[334941098,1723663842894,-626.61,0.00013698,2]
[334941099,1723663842903,-500.0,0.00013698,2]
[334941100,1723663842912,-501.70234172,0.00013698,2]
[334941101,1723663842922,-151.0,0.00013698,2]
[334941102,1723663842931,-500.0,0.00013698,2]
[334941103,1723663842940,-151.0,0.00013698,2]
[334941104,1723663842950,-500.0,0.00013698,2]
[334941105,1723663842960,-500.0,0.00013698,2]
[334941106,1723663842971,-500.0,0.00013698,2]
[334941107,1723663842981,-500.0,0.00013698,2]
[334941108,1723663842990,-501.57218982,0.00013698,2]
[334941109,1723663842999,-151.0,0.00013698,2]
[334941110,1723663843008,-500.0,0.00013698,2]
[334941111,1723663843018,-500.0,0.00013698,2]
[334941112,1723663843027,-500.0,0.00013698,2]
[334941113,1723663843036,-500.0,0.00013698,2]
[334941114,1723663843046,-500.0,0.00013698,2]
[334941115,1723663843055,-500.0,0.00013698,2]
[334941116,1723663843065,-598.85,0.00013698,2]
[334941117,1723663843074,-500.0,0.00013698,2]
[334941118,1723663843084,-500.0,0.00013698,2]
[334941119,1723663843095,-500.0,0.00013698,2]
[334941120,1723663843107,-500.0,0.00013698,2]
[334941121,1723663843118,-500.0,0.00013698,2]
[334941123,1723663843128,-500.0,0.00013698,2]
[334941125,1723663843137,-500.0,0.00013698,2]
[334941127,1723663843147,-500.0,0.00013698,2]
[334941129,1723663843157,-247.18501387,0.00013698,2]
[334941132,1723663843166,-500.0,0.00013698,2]
[334941133,1723663843176,-174.1435095,0.00013698,2]
[334941134,1723663843186,-500.0,0.00013698,2]
[334941135,1723663843195,-500.0,0.00013698,2]
[334941136,1723663843204,-300.0,0.00013698,2]
[334941137,1723663843214,-748.34,0.00013698,2]
[334941138,1723663843223,-500.0,0.00013698,2]
[334941139,1723663843233,-500.0,0.00013698,2]
[334941140,1723663843242,-500.0,0.00013698,2]
[334941141,1723663843251,-500.0,0.00013698,2]
[334941142,1723663843260,-500.0,0.00013698,2]
[334941143,1723663843270,-500.0,0.00013698,2]
[334941144,1723663843280,-387.55479876,0.00013698,2]
[334941145,1723663843290,-246.97786318,0.00013698,2]
[334941146,1723663843300,-500.0,0.00013698,2]
[334941147,1723663843310,-151.0,0.00013698,2]
[334941148,1723663843321,-151.0,0.00013698,2]
[334941149,1723663843333,-500.0,0.00013698,2]
[334941150,1723663843343,-151.0,0.00013698,2]
[334941151,1723663843355,-151.0,0.00013698,2]
[334941152,1723663843366,-500.0,0.00013698,2]
[334941153,1723663843375,-500.0,0.00013698,2]
[334941154,1723663843384,-500.0,0.00013698,2]
[334941155,1723663843393,-500.0,0.00013698,2]
[334941156,1723663843403,-151.0,0.00013698,2]
[334941157,1723663843412,-216.90619,0.00013698,2]
[334941158,1723663843422,-670.18,0.00013698,2]
[334941159,1723663843431,-613.078836,0.00013698,2]
[334941160,1723663843441,-500.0,0.00013698,2]
[334941161,1723663843452,-450.0,0.00013698,2]
[334941162,1723663843462,-500.0,0.00013698,2]
[334941163,1723663843472,-613.078836,0.00013698,2]
[334941165,1723663843482,-500.0,0.00013698,2]
[334941167,1723663843492,-570.4,0.00013698,2]
[334941168,1723663843501,-500.0,0.00013698,2]
[334941169,1723663843511,-500.0,0.00013698,2]
[334941172,1723663843525,-500.0,0.00013698,2]
[334941173,1723663843534,-500.0,0.00013698,2]
[334941174,1723663843543,-500.0,0.00013698,2]
[334941175,1723663843552,-234.65402979,0.00013698,2]
[334941176,1723663843563,-638.82,0.00013698,2]
[334941177,1723663843574,-331.22858278,0.00013698,2]
[334941178,1723663843584,-218.68616495,0.00013698,2]
[334941179,1723663843596,-500.0,0.00013698,2]
[334941180,1723663843606,-500.0,0.00013698,2]
[334941181,1723663843616,-500.0,0.00013698,2]
[334941182,1723663843625,-277.84397987,0.00013698,2]
[334941183,1723663843635,-500.0,0.00013698,2]
[334941184,1723663843644,-500.0,0.00013698,2]
[334941185,1723663843654,-500.0,0.00013698,2]
[334941186,1723663843663,-500.0,0.00013698,2]
[334941187,1723663843672,-600.0,0.00013698,2]
[334941188,1723663843681,-666.8,0.00013698,2]
[334941189,1723663843691,-500.0,0.00013698,2]
[334941190,1723663843700,-500.0,0.00013698,2]
[334941191,1723663843709,-189.32032509,0.00013698,2]
[334941192,1723663843718,-500.0,0.00013698,2]
[334941193,1723663843728,-500.0,0.00013698,2]
[334941194,1723663843739,-500.0,0.00013698,2]
[334941195,1723663843749,-500.0,0.00013698,2]
[334941196,1723663843759,-500.0,0.00013698,2]
[334941197,1723663843769,-500.0,0.00013698,2]
[334941198,1723663843779,-500.0,0.00013698,2]
[334941199,1723663843788,-500.0,0.00013698,2]
[334941200,1723663843798,-500.0,0.00013698,2]
[334941201,1723663843808,-826.95,0.00013698,2]
[334941202,1723663843817,-500.0,0.00013698,2]
[334941203,1723663843827,-250.0,0.00013698,2]
[334941204,1723663843837,-500.0,0.00013698,2]
[334941205,1723663843846,-500.0,0.00013698,2]
[334941206,1723663843856,-500.0,0.00013698,2]
[334941207,1723663843869,-500.0,0.00013698,2]
[334941208,1723663843878,-500.0,0.00013698,2]
[334941209,1723663843888,-300.0,0.00013698,2]
[334941210,1723663843898,-500.0,0.00013698,2]
[334941211,1723663843908,-502.21283972,0.00013698,2]
[334941212,1723663843917,-151.0,0.00013698,2]
[334941213,1723663843926,-500.0,0.00013698,2]
[334941214,1723663843936,-151.0,0.00013698,2]
[334941215,1723663843946,-151.0,0.00013698,2]
[334941216,1723663843955,-722.56,0.00013698,2]
[334941217,1723663843964,-500.0,0.00013698,2]
[334941218,1723663843975,-500.0,0.00013698,2]
[334941219,1723663843985,-500.0,0.00013698,2]
[334941220,1723663843996,-502.67983931,0.00013698,2]
[334941221,1723663844006,-706.42,0.00013698,2]
[334941222,1723663844016,-754.44,0.00013698,2]
[334941223,1723663844029,-500.0,0.00013698,2]
[334941224,1723663844038,-896.29,0.00013698,2]
[334941225,1723663844049,-500.0,0.00013698,2]
[334941226,1723663844059,-500.0,0.00013698,2]
[334941227,1723663844067,-500.0,0.00013698,2]
[334941228,1723663844077,-500.0,0.00013698,2]
[334941229,1723663844086,-516.31393146,0.00013698,2]
[334941230,1723663844096,-500.0,0.00013698,2]
[334941231,1723663844105,-500.0,0.00013698,2]
[334941232,1723663844116,-554.39,0.00013698,2]
[334941233,1723663844126,-269.28091569,0.00013698,2]
[334941234,1723663844135,-500.0,0.00013698,2]
[334941235,1723663844145,-500.0,0.00013698,2]
[334941236,1723663844154,-500.0,0.00013698,2]
[334941237,1723663844164,-500.0,0.00013698,2]
[334941238,1723663844174,-521.93036736,0.00013698,2]
[334941239,1723663844184,-500.0,0.00013698,2]
[334941240,1723663844194,-606.80540366,0.00013698,2]
[334941241,1723663844204,-172.99687062,0.00013698,2]
[334941242,1723663844214,-500.0,0.00013698,2]
[334941243,1723663844223,-500.0,0.00013698,2]
[334941244,1723663844234,-500.0,0.00013698,2]
[334941245,1723663844243,-500.0,0.00013698,2]
[334941246,1723663844253,-407.5702933,0.00013698,2]
[334941247,1723663844263,-593.16,0.00013698,2]
[334941248,1723663844273,-500.0,0.00013698,2]
[334941249,1723663844283,-500.0,0.00013698,2]
[334941250,1723663844292,-569.15,0.00013698,2]
[334941251,1723663844302,-537.71,0.00013698,2]
[334941252,1723663844311,-500.0,0.00013698,2]
[334941253,1723663844321,-151.0,0.00013698,2]
[334941254,1723663844331,-500.0,0.00013698,2]
[334941255,1723663844342,-151.0,0.00013698,2]
[334941256,1723663844352,-700.21,0.00013698,2]
[334941257,1723663844361,-500.0,0.00013698,2]
[334941258,1723663844376,-236.637214,0.00013698,2]
[334941259,1723663844387,-236.637214,0.00013698,2]
[334941260,1723663844397,-500.0,0.00013698,2]
[334941261,1723663844408,-500.0,0.00013698,2]
[334941262,1723663844418,-500.0,0.00013698,2]
[334941263,1723663844428,-151.0,0.00013698,2]
[334941264,1723663844438,-151.0,0.00013698,2]
[334941265,1723663844447,-500.0,0.00013698,2]
[334941266,1723663844457,-500.0,0.00013698,2]
[334941267,1723663844467,-236.637214,0.00013698,2]
[334941268,1723663844476,-322.846327,0.00013698,2]
[334941269,1723663844486,-236.637214,0.00013698,2]
[334941270,1723663844624,-322.846327,0.00013698,2]
[334941271,1723663844633,-502.17024198,0.00013698,2]
[334941272,1723663844643,-500.0,0.00013698,2]
[334941273,1723663844653,-500.0,0.00013698,2]
[334941274,1723663844662,-322.846327,0.00013698,2]
[334941275,1723663844672,-322.846327,0.00013698,2]
[334941276,1723663844682,-500.0,0.00013698,2]
[334941277,1723663844691,-500.0,0.00013698,2]
[334941278,1723663844701,-151.0,0.00013698,2]
[334941279,1723663844710,-151.0,0.00013698,2]
[334941280,1723663844720,-500.0,0.00013698,2]
[334941281,1723663844729,-737.8,0.00013698,2]
[334941282,1723663844738,-500.0,0.00013698,2]
[334941283,1723663844748,-502.15,0.00013698,2]
[334941284,1723663844758,-500.0,0.00013698,2]
[334941285,1723663844767,-500.0,0.00013698,2]
[334941286,1723663844777,-500.0,0.00013698,2]
[334941287,1723663844788,-500.0,0.00013698,2]
[334941288,1723663844797,-510.9379568,0.00013698,2]
[334941289,1723663844807,-500.0,0.00013698,2]
[334941290,1723663844817,-151.0,0.00013698,2]
[334941291,1723663844828,-500.0,0.00013698,2]
[334941292,1723663844837,-152.069158,0.00013698,2]
[334941293,1723663844848,-500.0,0.00013698,2]
[334941294,1723663844857,-500.0,0.00013698,2]
[334941295,1723663844869,-500.0,0.00013698,2]
[334941296,1723663844878,-500.0,0.00013698,2]
[334941297,1723663844889,-500.0,0.00013698,2]
[334941298,1723663844899,-500.0,0.00013698,2]
[334941299,1723663844910,-551.46,0.00013698,2]
[334941300,1723663844920,-500.0,0.00013698,2]
[334941301,1723663844931,-500.0,0.00013698,2]
[334941302,1723663844942,-552.88,0.00013698,2]
[334941303,1723663844953,-526.17183015,0.00013698,2]
[334941304,1723663844962,-500.0,0.00013698,2]
[334941305,1723663844972,-500.0,0.00013698,2]
[334941306,1723663844981,-500.0,0.00013698,2]
[334941307,1723663844992,-505.0735467,0.00013698,2]
[334941308,1723663845001,-500.0,0.00013698,2]
[334941309,1723663845012,-548.62,0.00013698,2]
[334941310,1723663845022,-500.0,0.00013698,2]
[334941311,1723663845032,-500.0,0.00013698,2]
[334941312,1723663845042,-533.13,0.00013698,2]
[334941313,1723663845051,-151.0,0.00013698,2]
[334941314,1723663845060,-151.0,0.00013698,2]
[334941315,1723663845070,-151.0,0.00013698,2]
[334941316,1723663845079,-151.0,0.00013698,2]
[334941317,1723663845089,-151.0,0.00013698,2]
[334941318,1723663845098,-151.0,0.00013698,2]
[334941319,1723663845108,-500.0,0.00013698,2]
[334941320,1723663845121,-500.83942618,0.00013698,2]
[334941321,1723663845130,-500.0,0.00013698,2]
[334941322,1723663845140,-500.0,0.00013698,2]
[334941323,1723663845150,-500.0,0.00013698,2]
[334941324,1723663845160,-500.0,0.00013698,2]
[334941325,1723663845169,-502.60012438,0.00013698,2]
[334941326,1723663845179,-500.0,0.00013698,2]
[334941327,1723663845188,-500.0,0.00013698,2]
[334941328,1723663845198,-500.0,0.00013698,2]
[334941329,1723663845207,-167.673982,0.00013698,2]
[334941330,1723663845217,-167.673982,0.00013698,2]
[334941331,1723663845227,-511.34002103,0.00013698,2]
[334941332,1723663845236,-500.0,0.00013698,2]
[334941333,1723663845246,-500.0,0.00013698,2]
[334941334,1723663845255,-167.673982,0.00013698,2]
[334941335,1723663845266,-167.673982,0.00013698,2]
[334941336,1723663845275,-500.0,0.00013698,2]
[334941337,1723663845285,-500.0,0.00013698,2]
[334941338,1723663845295,-167.673982,0.00013698,2]
[334941339,1723663845304,-167.673982,0.00013698,2]
[334941340,1723663845314,-167.673982,0.00013698,2]
[334941341,1723663845324,-628.8,0.00013698,2]
[334941342,1723663845335,-167.673982,0.00013698,2]
[334941343,1723663845344,-300.0,0.00013698,2]
[334941344,1723663845354,-502.7949653,0.00013698,2]
[334941345,1723663845363,-500.0,0.00013698,2]
[334941346,1723663845376,-551.23,0.00013698,2]
[334941347,1723663845386,-500.0,0.00013698,2]
[334941348,1723663845396,-500.0,0.00013698,2]
[334941349,1723663845406,-569.66,0.00013698,2]
[334941350,1723663845417,-500.0,0.00013698,2]
[334941351,1723663845427,-500.0,0.00013698,2]
[334941352,1723663845437,-500.0,0.00013698,2]
[334941353,1723663845450,-500.0,0.00013698,2]
[334941354,1723663845460,-500.0,0.00013698,2]
[334941355,1723663845471,-508.14820409,0.00013698,2]
[334941356,1723663845481,-558.57,0.00013698,2]
[334941357,1723663845490,-504.09982287,0.00013698,2]
[334941358,1723663845502,-500.0,0.00013698,2]
[334941359,1723663845511,-500.0,0.00013698,2]
[334941360,1723663845524,-500.0,0.00013698,2]
[334941361,1723663845534,-500.0,0.00013698,2]
[334941362,1723663845544,-500.0,0.00013698,2]
[334941363,1723663845553,-500.0,0.00013698,2]
[334941364,1723663845564,-589.34,0.00013698,2]
[334941365,1723663845573,-502.26218257,0.00013698,2]
[334941366,1723663845583,-500.0,0.00013698,2]
[334941367,1723663845595,-500.0,0.00013698,2]
[334941368,1723663845604,-812.74,0.00013698,2]
[334941369,1723663845613,-500.0,0.00013698,2]
[334941370,1723663845634,-502.67721468,0.00013698,2]
[334941371,1723663845644,-502.81348435,0.00013698,2]
[334941372,1723663845653,-500.0,0.00013698,2]
[334941373,1723663845664,-500.0,0.00013698,2]
[334941374,1723663845673,-558.9,0.00013698,2]
[334941375,1723663845683,-595.8,0.00013698,2]
[334941376,1723663845692,-585.61,0.00013698,2]
[334941377,1723663845701,-500.0,0.00013698,2]
[334941378,1723663845711,-500.0,0.00013698,2]
[334941379,1723663845721,-539.12550768,0.00013698,2]
[334941380,1723663845733,-657.01,0.00013698,2]